Cogmind - Beta 9.6 @@@ ROGUE MODE // 2020.05.21 @ 11:14:51 Player: Pimski Result: Destroyed by D-53 Grenadier with Mini Grenade Launcher Performance ------------- Evolutions (0) 0 Regions Visited (2) 400 Robots Destroyed (36) 180 Value Destroyed (930) 930 Prototype IDs (0) 0 Alien Tech Used (0) 0 Bonus (0) 0 TOTAL SCORE: 1510 Bonus ------- None Cogmind --------- Core Integrity 0/250 Matter 280/300 Energy 59/100 System Corruption 0% Temperature Cool (0) Movement Treading (180) Ox1 Location -10/Mines Parts ------- > --- POWER (1) -------- (None) > --- PROPULSION (2) --- Light Treads Light Treads > --- UTILITY (2) ------ Large Storage Unit High-capacity Storage Unit > --- WEAPON (2) ------- (None) > --- INVENTORY (18) --- Light Treads Medium Storage Unit Large Storage Unit Improved Targeting Computer Light Armor Plating Medium Armor Plating Hacking Suite Hacking Suite Light EM Pulse Cannon Light EM Pulse Cannon Light EM Pulse Cannon Light EM Pulse Cannon Shotgun Shotgun Shotgun Grenade Launcher Peak State ------------ > --- POWER ------------ Ion Engine > --- PROPULSION ------- Light Treads Light Treads > --- UTILITY ---------- Large Storage Unit High-capacity Storage Unit > --- WEAPON ----------- Light Assault Rifle Shotgun > --- INVENTORY -------- Light Treads Compact Wheel Compact Wheel Medium Storage Unit Medium Storage Unit Large Storage Unit Improved Targeting Computer Medium Armor Plating Hacking Suite Hacking Suite Light EM Pulse Cannon Light EM Pulse Cannon Light EM Pulse Cannon Light EM Pulse Cannon Shotgun Shotgun Grenade Launcher Grenade Launcher [Rating: 11] Favorites ----------- Power Ion Engine Engine Ion Engine Propulsion Light Treads Treads Light Treads Leg Aluminum Leg Wheel Compact Wheel Utility Large Storage Unit Storage Large Storage Unit Weapon Light Assault Rifle Energy Gun Medium Laser Ballistic Gun Light Assault Rifle Build | -11 -10 -10 ------- Run | Scr Mat Min Slots Evolved . | . . . Power . | . . . Propulsion . | . . . Utility . | . . . Weapon . | . . . Parts Attached 21 | 1 16 4 Power 3 | . 3 . Engine 3 | . 3 . Core . | . . . Reactor . | . . . Propulsion 7 | . 3 4 Treads 5 | . 3 2 Leg . | . . . Wheel 2 | . . 2 Hover . | . . . Flight . | . . . Utility 4 | 1 3 . Device . | . . . Storage 4 | 1 3 . Processor . | . . . Hackware . | . . . Protection . | . . . Artifact . | . . . Weapon 7 | . 7 . Energy Gun 4 | . 4 . Energy Cannon . | . . . Ballistic Gun 3 | . 3 . Ballistic Cannon . | . . . Launcher . | . . . Special Weapon . | . . . Impact Weapon . | . . . Slashing Weapon . | . . . Piercing Weapon . | . . . Special Melee Weapon . | . . . Unidentified Prototypes . | . . . Parts Lost 11 | . 6 5 Power 2 | . 1 1 Propulsion 3 | . 1 2 Utility . | . . . Weapon 6 | . 4 2 Highest Loss Streak 4 | . 2 4 Average Slot Usage (%) 98 | . 99 89 Engine 13 | . 13 5 Treads 22 | . 22 25 Leg 5 | . 5 . Storage 28 | . 28 28 Energy Gun 11 | . 11 . Ballistic Gun 16 | . 16 27 Naked Turns . | . . . Heaviest Build 57 | 15 57 57 Greatest Support 40 | 20 40 40 Greatest Overweight (x) 3 | . 2 3 Average Overweight (x) . | . . 1 Largest Inventory Capacity 18 | 8 18 18 Average Capacity 14 | 6 14 18 Most Carried 18 | 6 18 18 Average Carried 14 | 6 13 17 Final Capacity 18 | 8 18 18 Final Carried 18 | 6 18 16 Class Distribution -------------------- 100% | Mutant Dominant Class ---------------- Mutant | -10/Materials Mutant | -10/Mines Resources | -11 -10 -10 ----------- Run | Scr Mat Min Matter Collected 523 | 216 257 50 Remotely . | . . . Salvage Created 1393 | 58 1255 80 Parts 72 | 4 66 2 Haulers Intercepted 2 | . 2 . Recyclers Shooed 4 | . 4 . Parts Field Recycled . | . . . Retrieved Matter . | . . . Parts Self-Destructed . | . . . Prevented . | . . . Kills | -11 -10 -10 ------- Run | Scr Mat Min Combat Hostiles Destroyed 24 | . 22 2 Guns 24 | . 22 2 Classes Destroyed 6 | 1 5 . Hauler 2 | . 2 . Recycler 3 | 1 2 . Operator 4 | . 4 . Watcher 3 | . 3 . Swarmer 3 | . 3 . Grunt 21 | . 19 2 Best Kill Streak 4 | 1 4 2 Combat Bots Only 4 | . 4 2 Max Kills in Single Turn 1 | 1 1 1 Gunslinging . | . . . Exploded . | . . . Melee . | . . . Uniques/NPCs Destroyed . | . . . Combat | -11 -10 -10 -------- Run | Scr Mat Min Damage Taken 1468 | . 993 475 Core 253 | . 151 102 Absorbed by Shields . | . . . Core Remaining (%) 100 | 100 . . Volleys Fired 143 | 6 126 11 Largest 2 | 2 2 2 Hottest 100 | 60 100 43 Shots Fired 276 | 12 242 22 Gun 276 | 12 242 22 Cannon . | . . . Launcher . | . . . Special . | . . . Kinetic 142 | 6 114 22 Thermal 134 | 6 128 . Explosive . | . . . Electromagnetic . | . . . Robot Hit Streak 11 | 4 11 6 Robot Miss Streak 3 | 1 3 2 Penetration Max . | . . . Secondary Targets 2 | . 2 . Max Gunslinging Chain 1 | . 1 . Shots Hit Robots 206 | 8 179 19 Core Hits 75 | 2 67 6 Critical Hits . | . . . Critical Kills . | . . . Critical Parts Destroyed . | . . . Melee Attacks . | . . . Impact . | . . . Slashing . | . . . Piercing . | . . . Sneak Attacks . | . . . Combat Hostiles . | . . . Follow-up Attacks . | . . . Damage Inflicted 2142 | 78 1883 181 Guns 2076 | 78 1817 181 Cannons . | . . . Explosions . | . . . Melee . | . . . Ramming 66 | . 66 . Kinetic 790 | 34 575 181 Thermal 1286 | 44 1242 . Explosive . | . . . Electromagnetic . | . . . Impact . | . . . Slashing . | . . . Piercing . | . . . Highest Corruption . | . . . Average Corruption . | . . . Corruption Purged . | . . . Overload Shots . | . . . Overflow Damage 2 | . 2 . Projectiles . | . . . Explosions . | . . . Melee 2 | . 2 . Knockbacks 1 | . 1 . Impact 1 | . 1 . Kinetic . | . . . Secondary . | . . . Self-Inflicted Damage 2 | . 2 . Shots . | . . . Rammed 8 | . 8 . Targets Rammed 8 | . 8 . Kicked . | . . . Crushed . | . . . Highest Temperature 301 | 40 301 16 Average Temperature 74 | 17 79 5 Received Heat Transfer 615 | . 540 75 Effects 2 | . 2 . Interference 2 | . 2 . Siege Activations . | . . . Robots Corrupted . | . . . Combat Hostiles . | . . . Parts Fried . | . . . Impact Corruptions 1 | . 1 . Robots Melted . | . . . Combat Hostiles . | . . . Parts Melted 3 | . 3 . Heat Transferred 3527 | 100 3427 . Parts Sabotaged . | . . . Parts Stolen . | . . . Parts Stripped . | . . . Power Chain Reactions . | . . . Missiles Intercepted . | . . . Alert | -11 -10 -10 ------- Run | Scr Mat Min Peak Influence 247 | 5 247 63 Average Influence 93 | 3 98 50 Maximum Alert Level 1 | . 1 . Low Security (%) 96 | 100 95 100 Level 1 3 | . 4 . Level 2 . | . . . Level 3 . | . . . Level 4 . | . . . Level 5 . | . . . High Security . | . . . Max Security . | . . . Squads Dispatched 6 | . 6 . Investigation 1 | . 1 . Extermination . | . . . Reinforcement 5 | . 5 . Assault . | . . . Garrison . | . . . Intercept . | . . . Construction Impeded . | . . . Haulers Reinforced . | . . . Stealth | -11 -10 -10 --------- Run | Scr Mat Min Distress Signals 1 | . . 1 Communications Jammed . | . . . Distress Signals . | . . . Times Spotted 48 | . 43 5 Peak Tracking Total 4 | . 4 4 Tactical Retreats 1 | . . 1 Traps | -11 -10 -10 ------- Run | Scr Mat Min Traps Triggered 1 | . 1 . Indirectly . | . . . Trap Hack Attempts . | . . . Triggered . | . . . Disarmed . | . . . Reprogrammed . | . . . Reused . | . . . Traps Extracted . | . . . Installed . | . . . Triggered . | . . . Machines | -11 -10 -10 ---------- Run | Scr Mat Min Machines Disabled . | . . . Max in Single Turn . | . . . Machines Sabotaged . | . . . Garrisons Compromised . | . . . Overloaded Fab Kills . | . . . Fab Network Shutdowns . | . . . Hacking | -11 -10 -10 --------- Run | Scr Mat Min Machines Accessed 5 | . 5 . Terminals 2 | . 2 . Fabricators . | . . . Repair Stations 1 | . 1 . Recycling Units 2 | . 2 . Scanalyzers . | . . . Garrison Access . | . . . Total Hacks 15 | . 15 . Successful 9 | . 9 . Failed 6 | . 6 . Catastrophic . | . . . Database Lockouts . | . . . Manual 5 | . 5 . Terminals 5 | . 5 . Fabricators . | . . . Repair Stations 4 | . 4 . Recycling Units 6 | . 6 . Scanalyzers . | . . . Garrison Access . | . . . Terminal Hacks . | . . . Fabricator Hacks . | . . . Repair Station Hacks 4 | . 4 . Scan Component 2 | . 2 . Repair 2 | . 2 . Recycling Unit Hacks 4 | . 4 . Retrieve Components 4 | . 4 . Scanalyzer . | . . . Garrison Access Hacks . | . . . Unauthorized Hacks 1 | . 1 . Terminals 1 | . 1 . Botnet 1 | . 1 . Fabricators . | . . . Repair Stations . | . . . Recycling Units . | . . . Scanalyzers . | . . . Garrison Access . | . . . Data Cores Recovered . | . . . Used . | . . . Hacking Detections 4 | . 4 . Full Trace Events . | . . . Feedback Events . | . . . Feedback Blocked . | . . . Robot Schematics Acquired . | . . . Robots Built . | . . . Matter . | . . . Time . | . . . Total Robot Build Rating . | . . . Part Schematics Acquired . | . . . Parts Built . | . . . Matter . | . . . Time . | . . . Total Part Build Rating . | . . . Parts Repaired 2 | . 2 . Time 58 | . 58 . Parts Recycled . | . . . Recycled Matter . | . . . Retrieved Matter . | . . . Retrieved Components 19 | . 19 . Parts Scanalyzed . | . . . Part Schematics Acquired . | . . . Parts Damaged . | . . . Bothacking | -11 -10 -10 ------------ Run | Scr Mat Min Used RIF Installer . | . . . Robots Hacked . | . . . Non-combat . | . . . Combat . | . . . Robot Hacks Applied . | . . . Relay Couplers Released . | . . . Robots Rewired . | . . . Allies Hacked . | . . . Hacks Repelled . | . . . Allies | -11 -10 -10 -------- Run | Scr Mat Min Total Allies . | . . . Largest Group . | . . . Highest-Rated Group . | . . . Highest-Rated Ally . | . . . Total Orders . | . . . Ally Attacks . | . . . Total Damage . | . . . Kills . | . . . Allies Corrupted . | . . . Allies Melted . | . . . Intel | -11 -10 -10 ------- Run | Scr Mat Min Robot Analysis Total . | . . . Derelict Logs Recovered 1 | . . 1 Drone Launches . | . . . Drone Recoveries . | . . . Exploration | -11 -10 -10 ------------- Run | Scr Mat Min Turns Passed 2217 | 39 2034 144 Spaces Moved 964 | 18 880 66 Core . | . . . Treads 799 | . 756 43 Legs 142 | 18 124 . Wheels 23 | . . 23 Hover . | . . . Flight . | . . . Fastest Speed 110 | 120 120 110 Average Speed 163 | 120 164 161 Slowest Speed 200 | 120 200 180 Overloaded Moves . | . . . Propulsion Burnouts . | . . . Robots Hopped . | . . . Cave-ins Triggered . | . . . Exploration Rate (%) 40 | 3 98 20 Regions Visited 2 Branch Regions 1 Pre-discovered Areas 1 | . . 1 Known Exits Taken . | . . . Unknown Exits Taken 2 | 1 1 . Scrap Searched . | . . . Spaces Dug . | . . . Terrain Destroyed . | . . . Melee . | . . . Projectile . | . . . AOE . | . . . Actions | -11 -10 -10 --------- Run | Scr Mat Min Total 1348 | 24 1242 82 Wait 173 | . 172 1 Move 962 | 17 879 66 Hop . | . . . Pick Up 26 | . 26 . Fast Attach 5 | 1 4 . Attach 7 | . 5 2 Detach . | . . . Swap 9 | . 7 2 Drop 15 | . 15 . Fire 143 | 6 126 11 Melee . | . . . Ram . | . . . Kick 1 | . 1 . Crush 7 | . 7 . Escape Stasis . | . . . Rewire . | . . . Trap . | . . . Miscellaneous . | . . . Route ------- -11/Scrapyard -10/Materials (discovered 5 exits: [*Mat x3] / [*Min x2]) -10/Mines History --------- Turn | Location | Event 18 | -11/Scrapyard | Discovered new exit (range 3) 40 | -11/Scrapyard | Entered Materials 314 | -10/Materials | Build established: Mutant 631 | -10/Materials | Discovered new exit (range 9) 759 | -10/Materials | Discovered new exit (range 14) 865 | -10/Materials | Core integrity fell below 50% 1194 | -10/Materials | Repaired Lgt. Treads 1287 | -10/Materials | Discovered new exit (range 6) 1439 | -10/Materials | Discovered new exit (range 9) 1591 | -10/Materials | Discovered new exit (range 5) 1878 | -10/Materials | Repaired Med. Armor Plating 2074 | -10/Materials | Entered Mines 2091 | -10/Mines | Met a Derelict bent on vengeance 2158 | -10/Mines | Assembled infested the area 2158 | -10/Mines | Learned location of Storage (-8) 2212 | -10/Mines | Core integrity fell below 20% 2218 | -10/Mines | Destroyed by D-53 Grenadier with Mini Grenade Launcher Last Messages --------------- Something is scanning the area. 02075_ K-01 Serf collects debris. 02112_ G-47 Trooper destroyed. 02126_ Ion Engine destroyed. 02126_ G-34 Mercenary destroyed. 02128_ K-01 Serf collects debris. 02129_ Acquired 37 matter. 02131_ Acquired 13 matter. 02133_ K-01 Serf collects debris. 02158_ ALERT: Infestation in the mines, dispatching Demolisher response squad. 02158_ Acquired derelict log, extracted data. World map updated: -8/Storage. 02182_ C-30 ARC bursts open, deploying its payload. 02182_ D-53 Grenadier unfolds itself. 02209_ Lgt. Assault Rifle destroyed. 02215_ Com. Wheel destroyed. 02216_ The unstable cave ceiling collapses. 02216_ Shotgun destroyed. 02216_ Com. Wheel destroyed. Map ----- +----------------------------------------------------+ | | | | | | | | | | | | | | | | | | | | | | | | | | | | | | | ???????????????????????????????????????????? | | ???????????????????????????????????????????? | | ???????####?????????#####??????????????????? | | ??????## ##??###### ##?????????????????? | | ?????## #### #?????????????????? | | ????## #?????????????????? | | ???## ######????????????? | | ???# ## #????????????? | | ???# ### #????????????? | | ???## # #### #????????????????? | | ????#=## ## @ #????????????????? | | ??###%## # ##????????????????? | | ??# [ ## ##?????????????????? | | ??# ## ##??????????????????? | | ??# ## #??????????????????? | | ??# ## d d #?????????????????? | | ??# ### # # t ????????????? | | ??# #?# ### # ######????????????? | | ??# #?# #?#### #?????????????????? | | ??######?# #????## #?????????????????? | | ?????????# #??????# #?????????????????? | | ?????????# #???????# #?????????????????? | | ?????????# #???????? #?????????????????? | | ?????##### #???????? #?????????????????? | | ?????# #????????# ##?????????????????? | | ????## ### #????????? ##??????????????????? | | ????# # #??????????????????????????????? | | ????# ## ?????????????????????????????? | | ????# # ????????????????????????????? | | ????# ####### ???????????????????????????? | | ???# #??????? ??????????????????????????? | | ???### ##????????#?????????????????????????? | | ?????# #???????????????????????????????????? | | ?????# #???????????????????????????????????? | | ?????# #???????????????????????????????????? | +----------------------------------------------------+ Best States ------------- Heat Dissipation 25 Energy Generation 10 Energy Capacity 250 Matter Stores 300 Matter Capacity 300 Sight Range 16 Terrain Scan Density 10 Evasion (%) 40 Recoil Reduction 2 Item Schematics ----------------- None Robot Schematics ------------------ None Fabricated ------------ Nothing Alien Tech Used ----------------- None Achievements -------------- None Challenges ------------ None Game ------ Seed LayeredArmoredMace Manual? 0 Play Time 00:13:55 Cumulative 691.2 hours Start 2020.05.21 @ 11:01:54 End 2020.05.21 @ 11:14:51 Sessions 1 Manual Loads 0 Difficulty Rogue Special Mode None Game No. 438 Rogue 438 Adventurer 0 Explorer 0 Win Type - Total 106 Types 72/6/8/10/5/1/4 Lore% 97 Gallery% 95 Achievement% 80 Wizard Run 0 Options --------- ASCII 0 Keyboard 0 Movement Numpad Keybinds 0 Fullscreen 2 Font 18/SmallcapsGlow Map View 76x50 Tactical HUD 1 Map Filters NONE Filters NONE Steam 1 RUN: da000a6c-4aaf-46af-8c23-9599f59aa765